fUST/lending_fUST_20260115
["ID","MTS","AMOUNT","RATE_DAILY","PERIOD"]
[401999898,1768455041788,-500.0,0.00015841,2]
[401999899,1768455041797,-522.64,0.00015841,2]
[401999900,1768455041807,-2500.0,0.0001589,2]
[401999901,1768455041817,-500.0,0.00016242,2]
[401999902,1768455041827,-864.0,0.0001638,2]
[401999903,1768455041838,-500.0,0.00016438,2]
[401999904,1768455041847,-500.0,0.00016438,2]
[401999905,1768455041857,-367.82004535,0.00016438,2]
[401999906,1768455041866,-200.0,0.00016473,2]
[401999907,1768455041876,-500.0,0.00017093,2]
[401999908,1768455041885,-500.0,0.00017093,2]
[401999909,1768455041895,-500.0,0.00017093,2]
[401999910,1768455041904,-11213.45746522,0.00017149,2]
[401999911,1768455041916,-1000.0,0.00017294,2]
[401999912,1768455041926,-1000.0,0.00017294,2]
[401999913,1768455041935,-1000.0,0.00017294,2]
[401999914,1768455041944,-1000.0,0.00017294,2]
[401999915,1768455041954,-776.23402166,0.00017294,2]
[401999916,1768455041963,-500.0,0.00017294,2]
[401999917,1768455041972,-500.0,0.00017294,2]
[401999918,1768455041982,-10774.31914963,0.00017341,2]
[401999919,1768455041991,-823.0,0.00017362,2]
[401999920,1768455042000,-500.0,0.00017597,2]
[401999921,1768455042010,-500.0,0.00017597,2]
[401999922,1768455042019,-500.0,0.00017597,2]
[401999923,1768455042028,-2137.737605,0.000176,2]
[401999924,1768455042037,-446.680539,0.00017707,2]
[401999925,1768455042046,-480.96564808,0.00017842,2]
[401999926,1768455042055,-3511.81258484,0.0001798,2]
[401999927,1768455042064,-500.0,0.00017989,2]
[401999928,1768455042073,-500.0,0.00017989,2]
[401999929,1768455042082,-500.0,0.00017989,2]
[401999930,1768455042091,-500.0,0.00017989,2]
[401999931,1768455042100,-500.0,0.00017989,2]
[401999932,1768455042109,-500.0,0.00017989,2]
[401999933,1768455042118,-500.0,0.00017989,2]
[401999934,1768455042128,-500.0,0.00017989,2]
[401999935,1768455042137,-500.0,0.00017989,2]
[401999936,1768455042147,-500.0,0.00017989,2]
[401999937,1768455042156,-152099.97936054,0.00018,2]
[401999938,1768455042165,-43935.63117231,0.00018,5]
[401999939,1768455042174,-1000.0,0.00018018,2]
[401999940,1768455042183,-500.0,0.00018518,2]
[401999941,1768455042192,-500.0,0.00018635,2]
[401999942,1768455042201,-496.80975185,0.00018709,2]
[401999943,1768455042210,-579.0444683,0.00018709,2]
[401999944,1768455042220,-160.0,0.00018768,2]
[401999945,1768455042230,-303.10001603,0.000189,2]
[401999946,1768455042239,-231538.94785161,0.000189,5]
[401999947,1768455042248,-1152.0,0.00019037,2]
[401999948,1768455042257,-303.10001603,0.00019089,2]
[401999949,1768455042267,-1330.86,0.00019178,2]
[401999950,1768455042277,-1330.86,0.00019178,2]
[401999951,1768455042286,-1330.86,0.00019178,2]
[401999952,1768455042295,-1330.86,0.00019178,2]
[401999953,1768455042306,-1330.86,0.00019178,2]
[401999954,1768455042316,-1330.86,0.00019178,2]
[401999955,1768455042325,-1330.86,0.00019178,2]
[401999956,1768455042334,-1330.86,0.00019178,2]
[401999957,1768455042344,-1330.86,0.00019178,2]
[401999958,1768455042354,-1330.86,0.00019178,2]
[401999959,1768455042363,-1330.86,0.00019178,2]
[401999960,1768455042372,-1330.86,0.00019178,2]
[401999961,1768455042381,-1330.86,0.00019178,2]
[401999962,1768455042391,-1330.86,0.00019178,2]
[401999963,1768455042402,-1330.86,0.00019178,2]
[401999964,1768455042412,-1330.86,0.00019178,2]
[401999965,1768455042421,-1330.86,0.00019178,2]
[401999966,1768455042431,-1330.86,0.00019178,2]
[401999967,1768455042440,-1330.86,0.00019178,2]
[401999968,1768455042449,-1330.86,0.00019178,2]
[401999969,1768455042458,-1330.86,0.00019178,2]
[401999970,1768455042468,-1330.86,0.00019178,2]
[401999971,1768455042476,-1330.86,0.00019178,2]
[401999972,1768455042485,-1330.9597785,0.00019178,2]
[401999973,1768455042495,-200.0,0.00019199,2]
[401999974,1768455042504,-157.1,0.000192,2]
[401999975,1768455042513,-10002.55227755,0.000192,2]
[401999976,1768455042685,-8116.7664206,0.000192,2]
[401999977,1768455042696,-817.33130185,0.000192,2]
[401999978,1768455042704,-2652.74,0.000192,2]
[401999979,1768455042714,-1041.66666667,0.000193,2]
[401999980,1768455042723,-445.5,0.00019584,2]
[401999981,1768455042733,-203.98331718,0.00019674,2]
[401999982,1768455042743,-164.90520993,0.00019699,2]
[401999983,1768455042752,-500.0,0.00019699,2]
[401999984,1768455042761,-202.73504251,0.00019699,2]
[401999985,1768455042770,-152.24595726,0.00019699,2]
[401999986,1768455042780,-200.0,0.00019699,2]
[401999987,1768455042788,-154.87231411,0.00019699,2]
[401999988,1768455042797,-248.51492197,0.00019699,2]
[401999989,1768455042806,-153.00266868,0.00019699,2]
[401999990,1768455042816,-162.11198798,0.00019699,2]
[401999991,1768455042828,-498.88995265,0.00019707,2]
[401999992,1768455042839,-160.53,0.000198,2]
[401999993,1768455042850,-1000.0,0.0001982,2]
[401999994,1768455042859,-244.0,0.0001982,2]
[401999995,1768455042870,-618.69740254,0.00019836,2]
[401999999,1768455042879,-160.52783475,0.00019973,2]
[402000001,1768455042888,-5502.61193904,0.0002,2]
[402000003,1768455042897,-13253.9173,0.0002,7]
[402000005,1768455042909,-183.24618593,0.00020028,2]
[402000007,1768455042920,-3511.81258484,0.0002017,2]
[402000009,1768455042929,-849.26,0.00020225,2]
[402000011,1768455042938,-4979.013874,0.00020225,7]
[402000012,1768455042947,-445.5,0.00020543,2]
[402000014,1768455042956,-2847.442541,0.00020548,2]
[402000016,1768455042965,-2652.74,0.000206,2]
[402000018,1768455042974,-172.590059,0.00020771,7]
[402000020,1768455042983,-1467.292928,0.00020771,7]
[402000022,1768455042992,-2147.0,0.00020791,2]
[402000023,1768455043001,-629.0,0.00020791,2]
[402000024,1768455043011,-1367.0,0.00020791,2]
[402000025,1768455043020,-418.0,0.00020791,2]
[402000026,1768455043029,-417.0,0.00020791,2]
[402000028,1768455043038,-715.0,0.00020791,2]
[402000029,1768455043048,-198.527,0.00020791,2]
[402000031,1768455043057,-1613.0,0.00020874,2]
[402000033,1768455043066,-18936.65,0.000209,2]
[402000035,1768455043076,-157.1,0.000212,2]
[402000037,1768455043085,-258.885087,0.000212,7]
[402000039,1768455043094,-3942.48195555,0.000212,2]
[402000042,1768455043104,-220.89225561,0.0002126,4]
[402000044,1768455043113,-3000.0,0.00021402,7]
[402000047,1768455043123,-258.9860714,0.00021429,2]
[402000049,1768455043132,-11902.79011495,0.000215,2]
[402000051,1768455043141,-445.5,0.00021503,2]
[402000052,1768455043149,-160.53,0.000217,2]
[402000054,1768455043158,-1000.0,0.000217,2]
[402000055,1768455043168,-1000.0,0.000217,2]
[402000057,1768455043177,-1000.0,0.000217,2]
[402000059,1768455043186,-1000.0,0.000217,2]
[402000060,1768455043194,-1000.0,0.000217,2]
[402000061,1768455043204,-1000.0,0.000217,2]
[402000062,1768455043214,-1000.0,0.000217,2]
[402000064,1768455043223,-1000.0,0.000217,2]
[402000066,1768455043233,-1000.0,0.000217,2]
[402000067,1768455043242,-1000.0,0.000217,2]
[402000068,1768455043251,-551.0993663,0.00021707,2]
[402000069,1768455043260,-1000.0,0.00021802,10]
[402000070,1768455043270,-492.0,0.00021802,10]
[402000072,1768455043279,-151.0,0.00021918,2]
[402000074,1768455043288,-151.0,0.00021918,2]
[402000075,1768455043297,-3668.232322,0.00021918,30]
[402000076,1768455043306,-250.0,0.0002194,2]
[402000077,1768455043315,-151.0,0.0002194,2]
[402000078,1768455043325,-250.0,0.0002194,2]
[402000079,1768455043334,-250.0,0.0002194,2]
[402000080,1768455043343,-250.0,0.0002194,2]
[402000081,1768455043352,-168.3888056,0.0002194,2]
[402000082,1768455043361,-461.67526834,0.0002194,2]
[402000083,1768455043370,-174.61919141,0.0002194,2]
[402000084,1768455043379,-500.0,0.0002194,2]
[402000085,1768455043388,-181.08010149,0.0002194,2]
[402000086,1768455043397,-151.0,0.0002194,2]
[402000087,1768455043407,-500.0,0.0002194,2]
[402000088,1768455043416,-187.78006525,0.0002194,2]
[402000089,1768455043426,-151.0,0.0002194,2]
[402000090,1768455043435,-500.0,0.0002194,2]
[402000092,1768455043444,-194.72792766,0.0002194,2]
[402000093,1768455043452,-151.0,0.0002194,2]
[402000095,1768455043461,-151.0,0.0002194,2]
[402000096,1768455043470,-500.0,0.0002194,2]
[402000097,1768455043480,-201.93286099,0.0002194,2]
[402000098,1768455043490,-151.0,0.0002194,2]
[402000099,1768455043499,-151.0,0.0002194,2]
[402000100,1768455043508,-500.0,0.0002194,2]
[402000101,1768455043517,-209.40437684,0.0002194,2]
[402000102,1768455043527,-151.0,0.0002194,2]
[402000103,1768455043536,-151.0,0.0002194,2]
[402000104,1768455043545,-500.0,0.0002194,2]
[402000105,1768455043554,-217.15233878,0.0002194,2]
[402000106,1768455043563,-151.0,0.0002194,2]
[402000107,1768455043572,-151.0,0.0002194,2]
[402000108,1768455043581,-500.0,0.0002194,2]
[402000109,1768455043590,-225.18697532,0.0002194,2]
[402000110,1768455043599,-2230.315306,0.0002194,2]
[402000111,1768455043608,-151.0,0.0002194,2]
[402000112,1768455043617,-151.0,0.0002194,2]
[402000113,1768455043626,-500.0,0.0002194,2]
[402000114,1768455043635,-233.51889341,0.0002194,2]
[402000115,1768455043644,-151.0,0.0002194,2]
[402000116,1768455043653,-151.0,0.0002194,2]
[402000117,1768455043662,-500.0,0.0002194,2]
[402000119,1768455043671,-242.15909246,0.0002194,2]
[402000120,1768455043680,-151.0,0.0002194,2]
[402000121,1768455043689,-151.0,0.0002194,2]
[402000122,1768455043698,-30000.0,0.0002194,2]
[402000123,1768455043707,-500.0,0.0002194,2]
[402000124,1768455043716,-251.11897888,0.0002194,2]
[402000125,1768455043725,-151.0,0.0002194,2]
[402000126,1768455043734,-151.0,0.0002194,2]
[402000128,1768455043743,-500.0,0.0002194,2]
[402000130,1768455043752,-260.4103811,0.0002194,2]
[402000132,1768455043761,-151.0,0.0002194,2]
[402000134,1768455043770,-151.0,0.0002194,2]
[402000136,1768455043779,-500.0,0.0002194,2]
[402000137,1768455043788,-270.0455652,0.0002194,2]
[402000139,1768455043798,-151.0,0.0002194,2]
[402000140,1768455043806,-151.0,0.0002194,2]
[402000141,1768455043815,-500.0,0.0002194,2]
[402000142,1768455043824,-280.03725112,0.0002194,2]
[402000143,1768455043837,-151.0,0.0002194,2]
[402000144,1768455043846,-151.0,0.0002194,2]
[402000145,1768455043855,-500.0,0.0002194,2]
[402000146,1768455043863,-290.39862941,0.0002194,2]
[402000147,1768455043874,-151.0,0.0002194,2]
[402000148,1768455043883,-151.0,0.0002194,2]
[402000149,1768455043892,-151.0,0.0002194,2]
[402000150,1768455043902,-500.0,0.0002194,2]
[402000151,1768455043911,-301.1433787,0.0002194,2]
[402000152,1768455043920,-151.0,0.0002194,2]
[402000153,1768455043930,-151.0,0.0002194,2]
[402000154,1768455043939,-153.56977001,0.0002194,2]
[402000155,1768455043948,-500.0,0.0002194,2]
[402000156,1768455043957,-151.0,0.0002194,2]
[402000157,1768455043966,-500.0,0.0002194,2]
[402000158,1768455043976,-1957.856,0.0002194,2]
[402000159,1768455043985,-151.0,0.0002194,2]
[402000160,1768455043994,-151.0,0.0002194,2]
[402000161,1768455044003,-151.0,0.0002194,2]
[402000162,1768455044012,-151.0,0.0002194,2]
[402000163,1768455044021,-151.0,0.0002194,2]
[402000164,1768455044031,-252.38140439,0.0002194,2]
[402000165,1768455044040,-250.0,0.0002194,2]
[402000166,1768455044049,-250.0,0.0002194,2]
[402000167,1768455044058,-250.0,0.0002194,2]
[402000168,1768455044067,-657.09699259,0.00021957,12]
[402000169,1768455044076,-2030.296672,0.00021995,2]
[402000170,1768455044084,-1864.81,0.00022,7]
[402000171,1768455044093,-2652.74,0.00022,14]
[402000172,1768455044102,-542.42046568,0.00022,20]
[402000173,1768455044111,-163.0,0.00022,2]
[402000174,1768455044120,-334.63594,0.00022004,30]
[402000175,1768455044287,-2105.41764886,0.0002205,2]
[402000176,1768455044297,-1968.0540927,0.00022105,2]
[402000177,1768455044306,-163.0,0.00022192,7]
[402000178,1768455044315,-1701.0,0.00022244,2]
[402000179,1768455044325,-151.0,0.00022244,2]
[402000180,1768455044334,-151.0,0.00022244,2]
[402000181,1768455044343,-151.0,0.00022244,2]
[402000182,1768455044353,-151.0,0.00022244,2]
[402000183,1768455044363,-260.020256,0.00022244,2]
[402000184,1768455044379,-151.0,0.00022244,2]
[402000185,1768455044398,-151.112222,0.00022244,2]
[402000186,1768455044409,-239.00022,0.00022244,2]
[402000187,1768455044429,-720.916348,0.00022244,2]
[402000188,1768455044448,-720.916348,0.00022244,2]
[402000189,1768455044468,-151.0,0.00022244,2]
[402000190,1768455044480,-151.0,0.00022244,2]
[402000191,1768455044489,-720.916348,0.00022244,2]
[402000192,1768455044498,-151.0,0.00022244,2]
[402000193,1768455044507,-720.916348,0.00022244,2]
[402000194,1768455044516,-18936.65,0.000223,2]
[402000195,1768455044525,-168.0,0.00022356,7]
[402000196,1768455044536,-3511.81258484,0.0002236,2]
[402000197,1768455044545,-849.26,0.00022399,2]
[402000198,1768455044554,-180.23069529,0.00022414,2]
[402000199,1768455044564,-1215.0,0.00022422,2]
[402000200,1768455044573,-1215.0,0.00022461,2]
[402000201,1768455044582,-445.5,0.00022462,2]
[402000202,1768455044592,-300.0,0.00022466,2]
[402000203,1768455044602,-200.0,0.00022466,2]
[402000204,1768455044611,-151.0,0.00022488,2]
[402000205,1768455044621,-478.75725327,0.00022488,2]
[402000206,1768455044630,-2312.83697232,0.00022488,2]
[402000207,1768455044640,-31110.0,0.00022488,2]
[402000208,1768455044649,-3000.0,0.00022498,7]
[402000209,1768455044658,-1215.0,0.00022549,2]
[402000210,1768455044668,-1215.0,0.00022676,2]
[402000211,1768455044677,-1215.0,0.00022685,2]
[402000212,1768455044686,-157.1,0.000227,7]
[402000213,1768455044694,-836.589848,0.000227,30]
[402000214,1768455044704,-657.09699259,0.00022714,14]
[402000215,1768455044714,-5000.0,0.00022768,2]
[402000216,1768455044723,-8835.944866,0.00022768,30]
[402000217,1768455044732,-250.0,0.000228,10]
[402000218,1768455044742,-582375.50885541,0.000228,2]
[402000219,1768455044962,-250.0,0.0002194,2]
[402000220,1768455044972,-250.0,0.0002194,2]
[402000221,1768455044981,-250.0,0.0002194,2]
[402000222,1768455044991,-1237.87049881,0.000228,2]
[402000223,1768455045049,-5000.0,0.00014104,10]
[402000224,1768455045058,-151.0,0.00021918,2]
[402000225,1768455045067,-151.0,0.00021918,2]
[402000226,1768455045076,-250.0,0.0002194,2]
[402000227,1768455045085,-250.0,0.0002194,2]
[402000228,1768455045095,-250.0,0.0002194,2]
[402000229,1768455045104,-250.0,0.0002194,2]
[402000230,1768455045113,-3830.95729005,0.000228,2]
[402000231,1768455046363,-250.0,0.0002194,2]
[402000232,1768455046373,-250.0,0.0002194,2]
[402000233,1768455046382,-250.0,0.0002194,2]
[402000234,1768455046390,-250.0,0.0002194,2]
[402000235,1768455046399,-88248.94020429,0.000228,2]
[402000236,1768455046410,-1428.7880371,0.000228,2]
[402000251,1768455167527,1000.0,0.00027397,120]
[402000256,1768455176147,10000.0,0.00027397,120]
[402000257,1768455181906,10000.0,0.00027397,120]
[402000258,1768455190699,10000.0,0.00027397,120]
[402000259,1768455196762,10000.0,0.00027397,120]
[402000260,1768455204795,10000.0,0.00027397,120]
[402000265,1768455211863,10000.0,0.00027397,120]
[402000269,1768455218117,10000.0,0.00027397,120]
[402000270,1768455224435,10000.0,0.00027397,120]
[402000271,1768455230413,10000.0,0.00027397,120]
[402000273,1768455243867,1344.0,0.00027397,120]
[402000274,1768455466888,170.7057684,6.009e-05,2]
[402000284,1768455480078,393.19,4.995e-05,2]
[402000285,1768455480397,393.19,4.995e-05,2]
[402000286,1768455480681,393.2,4.995e-05,2]
[402000300,1768456056194,121278.59017643,0.00027,120]
[402000301,1768456067341,269.50797816,0.00027,120]
[402000303,1768456159957,155.0,5e-05,2]
[402000344,1768456232566,-5000.0,0.00010565,10]
[402000346,1768456232576,-5000.0,0.00010671,2]
[402000348,1768456232586,-5000.0,0.00010672,10]
[402000351,1768456232596,-608.0,0.00010779,2]
[402000354,1768456232605,-571.0,0.0001078,2]
[402000357,1768456232615,-300.0,0.00010834,2]
[402000360,1768456232624,-307.85355575,0.00010835,2]
[402000363,1768456232633,-153.00266868,0.00011286,2]
[402000366,1768456232643,-500.0,0.00011286,2]
[402000369,1768456232652,-237.68947624,0.00011286,2]
[402000372,1768456232662,-500.0,0.00011423,2]
[402000375,1768456232672,-890.0573767,0.0001145,2]
[402000378,1768456232681,-509.3406461,0.00011557,2]
[402000380,1768456232690,-3410.81736654,0.00011558,2]
[402000418,1768456238522,-5000.0,0.00010564,2]
[402000419,1768456238532,-9641.46057963,0.00011558,2]
[402000420,1768456238543,-5993.75280937,0.00011558,2]
[402000421,1768456238580,-30953.96924446,0.00011558,2]
[402000422,1768456238590,-500.0,0.0001156,2]
[402000423,1768456238600,-300.0,0.0001156,2]
[402000424,1768456238609,-300.0,0.0001156,2]
[402000425,1768456238619,-300.0,0.0001156,2]
[402000426,1768456238628,-300.0,0.0001156,2]
[402000427,1768456238639,-300.0,0.0001156,2]
[402000428,1768456238649,-300.0,0.0001156,2]
[402000429,1768456238659,-300.0,0.0001156,2]
[402000430,1768456238669,-300.0,0.0001156,2]
[402000431,1768456238678,-300.0,0.0001156,2]
[402000432,1768456238688,-300.0,0.0001156,2]
[402000433,1768456238697,-300.0,0.0001156,2]
[402000434,1768456238706,-300.0,0.0001156,2]
[402000435,1768456238716,-121.83448372,0.0001156,2]
[402000436,1768456238728,-178.16551628,0.0001156,2]
[402000437,1768456238738,-300.0,0.0001156,2]
[402000438,1768456238748,-300.0,0.0001156,2]
[402000439,1768456238757,-490.75948719,0.0001156,2]
[402000440,1768456238766,-211.64147935,0.00011697,2]
[402000441,1768456238775,-600.0,0.0001179,2]
[402000442,1768456238785,-150.48803404,0.00011834,2]
[402000443,1768456238794,-420.0,0.00011907,2]
[402000444,1768456238803,-260.392,0.00012429,2]
[402000445,1768456238813,-162.11198798,0.00012693,2]
[402000446,1768456238823,-154.87231411,0.00012693,2]
[402000447,1768456238832,-200.0,0.00012795,2]
[402000448,1768456238842,-200.0,0.00012795,2]
[402000449,1768456238851,-202.73504251,0.00012795,2]
[402000450,1768456238861,-152.24595726,0.00012795,2]
[402000451,1768456238870,-363.26719578,0.00012835,2]
[402000452,1768456238881,-160.52783475,0.00012967,2]
[402000453,1768456238891,-720.0,0.00012969,2]
[402000454,1768456238901,-54238.596706,0.0001307,2]
[402000455,1768456238910,-587.0,0.00013086,2]
[402000456,1768456238919,-151.0,0.000131,2]
[402000457,1768456238929,-151.0,0.000131,2]
[402000458,1768456238939,-151.0,0.000131,2]
[402000459,1768456238948,-151.0,0.000131,2]
[402000460,1768456238958,-151.0,0.000131,2]
[402000461,1768456238967,-151.0,0.000131,2]
[402000462,1768456238976,-151.0,0.000131,2]
[402000463,1768456238985,-151.0,0.000131,2]
[402000464,1768456238995,-151.0,0.000131,2]
[402000465,1768456239005,-151.0,0.000131,2]
[402000466,1768456239014,-151.0,0.000131,2]
[402000467,1768456239024,-151.0,0.000131,2]
[402000468,1768456239033,-151.0,0.000131,2]
[402000469,1768456239043,-151.0,0.000131,2]
[402000470,1768456239052,-151.0,0.000131,2]
[402000471,1768456239061,-151.0,0.000131,2]
[402000472,1768456239070,-151.0,0.000131,2]
[402000473,1768456239079,-151.0,0.000131,2]
[402000474,1768456239089,-151.0,0.000131,2]
[402000475,1768456239098,-151.0,0.000131,2]
[402000476,1768456239108,-151.0,0.000131,2]
[402000477,1768456239116,-151.0,0.000131,2]
[402000478,1768456239126,-151.0,0.000131,2]
[402000479,1768456239135,-151.0,0.000131,2]
[402000480,1768456239147,-151.0,0.000131,2]
[402000481,1768456239156,-151.0,0.000131,2]
[402000482,1768456239165,-151.0,0.000131,2]
[402000483,1768456239174,-500.0,0.00013273,2]
[402000484,1768456239184,-500.0,0.00013273,2]
[402000485,1768456239194,-500.0,0.00013273,2]
[402000486,1768456239203,-500.0,0.00013273,2]
[402000487,1768456239213,-500.0,0.00013273,2]
[402000488,1768456239223,-500.0,0.00013273,2]
[402000489,1768456239232,-500.0,0.00013273,2]
[402000490,1768456239247,-500.0,0.00013273,2]
[402000491,1768456239260,-500.0,0.00013273,2]
[402000492,1768456239272,-500.0,0.00013273,2]
[402000493,1768456239283,-500.0,0.00013273,2]
[402000494,1768456239295,-500.0,0.00013273,2]
[402000495,1768456239305,-500.0,0.00013273,2]
[402000496,1768456239316,-500.0,0.00013273,2]
[402000497,1768456239328,-500.0,0.00013273,2]
[402000498,1768456239340,-500.0,0.00013273,2]
[402000499,1768456239352,-448.42356391,0.00013557,2]
[402000500,1768456239365,-528.73332382,0.00013698,2]
[402000501,1768456239377,-500.0,0.00013698,2]
[402000502,1768456239389,-500.0,0.00013698,2]
[402000503,1768456239400,-500.0,0.00013698,2]
[402000504,1768456239412,-499.5497095,0.00013698,2]
[402000505,1768456239424,-849.26,0.00013698,2]
[402000506,1768456239437,-849.26,0.00013698,2]
[402000507,1768456239449,-849.26,0.00013698,2]
[402000508,1768456239460,-849.26,0.00013698,2]
[402000509,1768456239471,-849.26,0.00013698,2]
[402000510,1768456239483,-849.26,0.00013698,2]
[402000511,1768456239493,-849.26,0.00013698,2]
[402000512,1768456239504,-849.26,0.00013698,2]
[402000513,1768456239516,-849.26,0.00013698,2]
[402000514,1768456239528,-849.26,0.00013698,2]
[402000515,1768456239540,-849.26,0.00013698,2]
[402000516,1768456239551,-849.26,0.00013698,2]
[402000517,1768456239562,-849.26,0.00013698,2]
[402000518,1768456239572,-849.26,0.00013698,2]
[402000519,1768456239581,-849.26,0.00013698,2]
[402000520,1768456239594,-849.26,0.00013698,2]
[402000521,1768456239604,-849.26,0.00013698,2]
[402000522,1768456239615,-849.26,0.00013698,2]
[402000523,1768456239627,-849.26,0.00013698,2]
[402000524,1768456239637,-849.26,0.00013698,2]
[402000525,1768456239650,-849.26,0.00013698,2]
[402000526,1768456239662,-849.26,0.00013698,2]
[402000527,1768456239674,-849.26,0.00013698,2]
[402000528,1768456239687,-849.38245362,0.00013698,2]
[402000529,1768456239699,-1000.0,0.00013699,2]
[402000530,1768456239710,-62329.3713588,0.00013699,2]
[402000531,1768456239722,-500.0,0.00013699,2]
[402000532,1768456239733,-501.23330465,0.00013699,2]
[402000533,1768456239743,-500.0,0.00013699,2]
[402000534,1768456239753,-500.0,0.00013699,2]
[402000535,1768456239762,-500.0,0.00013699,2]
[402000536,1768456239773,-500.0,0.00013699,2]
[402000537,1768456239784,-500.0,0.00013699,2]
[402000538,1768456239795,-500.0,0.00013699,2]
[402000539,1768456239808,-500.0,0.00013699,2]
[402000540,1768456239820,-500.0,0.00013699,2]
[402000541,1768456239831,-500.0,0.00013699,2]
[402000542,1768456239840,-501.50533149,0.00013699,2]
[402000543,1768456239851,-500.0,0.00013699,2]
[402000544,1768456239862,-500.0,0.00013699,2]
[402000545,1768456239873,-500.0,0.00013699,2]
[402000546,1768456239885,-500.0,0.00013699,2]
[402000547,1768456239897,-504.95354358,0.00013699,2]
[402000548,1768456239907,-500.0,0.00013699,2]
[402000549,1768456239917,-253.24401436,0.00013699,2]
[402000550,1768456239928,-500.0,0.00013699,2]
[402000551,1768456239938,-502.0049811,0.00013699,2]
[402000552,1768456239949,-500.0,0.00013699,2]
[402000553,1768456239959,-500.0,0.00013699,2]
[402000554,1768456239970,-500.0,0.00013699,2]
[402000555,1768456239981,-500.0,0.00013699,2]
[402000556,1768456239992,-500.0,0.00013699,2]
[402000557,1768456240004,-500.0,0.00013699,2]
[402000558,1768456240014,-500.0,0.00013699,2]
[402000559,1768456240026,-526.67002344,0.00013699,2]
[402000560,1768456240036,-500.0,0.00013699,2]
[402000561,1768456240047,-500.0,0.00013699,2]
[402000563,1768456240058,-20963.1979786,0.0001375,2]
[402000564,1768456240069,-1000.0,0.00013821,2]
[402000566,1768456240080,-1000.0,0.00013821,2]
[402000568,1768456240090,-1004.99784011,0.00013821,2]
[402000570,1768456240101,-1000.0,0.00013821,2]
[402000572,1768456240111,-575.61084431,0.00013821,2]
[402000573,1768456240122,-1000.0,0.00013821,2]
[402000575,1768456240133,-1000.0,0.00013821,2]
[402000577,1768456240144,-1000.0,0.00013821,2]
[402000579,1768456240157,-1005.69222847,0.00013821,2]
[402000580,1768456240167,-864.9240206,0.00013821,2]
[402000582,1768456240178,-1000.0,0.00013821,2]
[402000584,1768456240190,-1000.0,0.00013821,2]
[402000585,1768456240201,-1000.0,0.00013821,2]
[402000586,1768456240212,-313.78216061,0.00014247,2]
[402000587,1768456240222,-1000.0,0.00014247,2]
[402000588,1768456240232,-1000.0,0.00014247,2]
[402000589,1768456240243,-1000.0,0.00014247,2]
[402000590,1768456240253,-920.28537916,0.00014247,2]
[402000591,1768456240263,-1000.0,0.00014247,2]
[402000592,1768456240274,-193.89026614,0.00014247,2]
[402000593,1768456240285,-504.7283729,0.00014247,2]
[402000594,1768456240295,-1000.0,0.00014247,2]
[402000595,1768456240305,-1000.0,0.00014247,2]
[402000596,1768456240316,-250.0,0.00014247,2]
[402000597,1768456240327,-431.404347,0.00014247,2]
[402000598,1768456240337,-310.24231288,0.00014247,2]
[402000599,1768456240348,-1000.0,0.00014247,2]